{"text_format":"1","workbook":"xlsx","n_sheets":9,"sheets":["1ОиДинфоб (2)","1ОиДинфоб","2КомфУслНал","2КомУслОц","3УслДостИнвНал","3УслДостИнвОц","4ДобрВежл","5УдовлУсл","Интегр"],"not_rendered":{"charts":0,"images":0,"macros":1,"external_links":0,"defined_names":1,"comments":0,"pivot_tables":0},"unopened":[],"bounds":{"document_bytes":16777216,"sheet_cells":100000,"rows_first":2000,"rows_last":500,"rows_between":2000,"halvings":0,"cell_chars":16384,"cell_head_chars":4096},"cells_cut":0,"cells_raw":0,"read":"whole","date_system":"1900"}

{"sheet":"1ОиДинфоб (2)","index":0,"n_rows":4,"n_cols":19,"rows_kept":4,"cut":false,"hidden":false,"merged":[[0,18,1,18],[0,3,0,8],[0,9,0,11],[0,12,0,17],[0,0,1,0],[0,1,1,1],[0,2,1,2],[1,3,1,4],[1,5,1,6]]}
["№ п/п","Муниципальное образование","Наименование образовательной организации","Показатель 1.1",null,null,null,null,null,"Показатель 1.2",null,null,"Показатель 1.3",null,null,null,null,null,"Итого по критерию:"]
[null,null,null,"1.1.1. Объем информации, размещенной на информационных стендах в помещении организации",null,"1.1.2. Объем информации, размещенной на официальном сайте организации",null,"Значение показателя 1.1","Значение показателя 1.1 с учетом значимости ","Количество функционирующих дистанционных способов взаимодействия","Значение показателя 1.2","Значение показателя 1.2 с учетом значимости","Число получателей услуг, удовлетворенных качеством, полнотой и доступностью информации о деятельности организации, размещенной на стендах организации","Число опрошенных получателей услуг, ответивших на соответствующий вопрос анкеты","Число получателей услуг, удовлетворенных качеством, полнотой и доступностью информации о деятельности организации, размещенной на сайте организации","Число опрошенных получателей услуг, ответивших на соответствующий вопрос анкеты","Значение показателя 1.3","Значение показателя 1 .3 с учетом веса"]
[null,null,null,null,null,null,null,100,30,null,100,30,null,null,null,null,100,40,{"$f":"I3+L3+R3","v":100}]
[48,"Краснощековский район","МБУДО  «Краснощековский районный детско-юношеский центр»",8,9,32,35,89.4,{"$f":"H4*0.3","v":26.82},4,{"$f":"IF(J4<=3,J4*30,100)","v":100},{"$f":"K4*0.3","v":30},114,114,109,110,{"$f":"0.5*(M4/N4+O4/P4)*100","v":99.545454545454547},{"$f":"Q4*0.4","v":39.81818181818182},{"$f":"I4+L4+R4","v":96.63818181818182}]

{"sheet":"1ОиДинфоб","index":1,"n_rows":4,"n_cols":17,"rows_kept":4,"cut":false,"hidden":false,"merged":[[0,16,1,16],[0,1,1,1],[0,2,1,2],[0,0,1,0],[0,3,0,6],[0,7,0,9],[0,10,0,15]]}
["№ п/п","Муниципальное образование","Наименование образовательной организации","Показатель 1.1",null,null,null,"Показатель 1.2",null,null,"Показатель 1.3",null,null,null,null,null,"Итого по критерию:"]
[null,null,null,"1.1.1. Объем информации, размещенной на информационных стендах в помещении организации","1.1.2. Объем информации, размещенной на официальном сайте организации","Значение показателя 1.1","Значение показателя 1.1 с учетом значимости ","Количество функционирующих дистанционных способов взаимодействия","Значение показателя 1.2","Значение показателя 1.2 с учетом значимости","Число получателей услуг, удовлетворенных качеством, полнотой и доступностью информации о деятельности организации, размещенной на стендах организации","Число опрошенных получателей услуг, ответивших на соответствующий вопрос анкеты","Число получателей услуг, удовлетворенных качеством, полнотой и доступностью информации о деятельности организации, размещенной на сайте организации","Число опрошенных получателей услуг, ответивших на соответствующий вопрос анкеты","Значение показателя 1.3","Значение показателя 1 .3 с учетом веса"]
[null,null,null,null,null,100,30,null,100,30,null,null,null,null,100,40,{"$f":"G3+J3+P3","v":100}]
[48,"Краснощековский район","МБУДО  «Краснощековский районный детско-юношеский центр»",8,32,89.4,26.8,4,100,30,114,114,109,110,99.545454545454547,39.81818181818182,96.6]

{"sheet":"2КомфУслНал","index":2,"n_rows":3,"n_cols":11,"rows_kept":3,"cut":false,"hidden":false,"merged":[[0,3,0,10],[0,2,1,2],[0,1,1,1],[0,0,1,0]]}
["№ п/п","Муниципальное образование","Наименование образовательной организации","Наличие в образовательных организациях комфортных условий для предоставления услуг"]
[null,null,null,"Наличие комфортной зоны отдыха (ожидания) оборудованной соответствующей мебелью","Наличие и понятность навигации внутри организации","Наличие и доступность питьевой воды","Наличие и доступность санитарно-гигиенических помещений","Санитарное состояние помещений организации","Транспортная доступность (доступность общественного транспорта и наличие парковки)","Доступность записи на получение услуги (по телефону, с использованием сети «Интернет» на официальном сайте ор","Итого:"]
[48,"Краснощековский район","МБУДО «Краснощековский районный детско-юношеский центр»",1,1,1,1,1,1,1,{"$f":"SUM(D3:J3)","v":7}]

{"sheet":"2КомУслОц","index":3,"n_rows":5,"n_cols":11,"rows_kept":5,"cut":false,"hidden":false,"merged":[[0,0,2,0],[0,1,2,1],[0,2,2,2],[1,3,1,5],[1,6,1,9],[0,3,0,10],[1,10,2,10]]}
["№ п/п","Муниципальное образование","Наименование образовательной организации","Обеспечение в организации социальной сферы комфортных условий для предоставления услуг"]
[null,null,null,"2.1.1. Наличие комфортных условий для предоставления услуг",null,null,"Показатель 2.3 Доля получателей услуг, удовлетворенных комфортностью условий предоставления услуг",null,null,null,"Итого по критерию:"]
[null,null,null,"Количество комфортных условий для предоставления услуг","Значение показателя 2.1.1","Значение показателя с учетом значимости","Число получателей услуг, удовлетворенных комфортностью предоставления услуг организацией образования","Число получателей услуг, опрошенных по данному вопросу","Значение показателя 2.3","Значение показателя 2.3 с учетом значимости"]
[null,null,null,null,100,50,null,null,100,{"$f":"I4*0.5","v":50},{"$f":"F4+J4","v":100}]
[48,"Краснощековский район","МБУДО «Краснощековский районный детско-юношеский центр»",7,{"$f":"IF(D5<=4,D5*20,100)","v":100},50,116,117,{"$f":"G5/H5*100","v":99.145299145299148},49.5,{"$f":"F5+J5","v":99.5}]

{"sheet":"3УслДостИнвНал","index":4,"n_rows":3,"n_cols":20,"rows_kept":3,"cut":false,"hidden":false,"merged":[[0,17,1,18],[0,19,1,19],[0,1,1,1],[0,2,1,2],[0,3,1,3],[0,4,0,9],[0,10,0,16]]}
[null,"№ п/п","Муниципальное образование","Наименование образовательной организации","Оборудование территории, прилегающей к организации, и ее помещений с учетом доступности для инвалидов:",null,null,null,null,null,"Обеспечение в организации условий доступности, позволяющих инвалидам получать услуги наравне с другими, включая:",null,null,null,null,null,null,"Значение показателя  с учетом значимости",null,"Итого:"]
[null,null,null,null,"Оборудование входных групп пандусами/подъемными платформами;","Наличие выделенных стоянок для автотранспортных средств инвалидов;","Наличие адаптированных лифтов, поручней, расширенных дверных проемов;","Наличие сменных кресел-колясок;","Наличие специально оборудованных санитарно-гигиенических помещений в организации","Количество условий","Дублирование для инвалидов по слуху и зрению звуковой и зрительной информации","Дублирование надписей, знаков и иной текстовой и графической информации знаками, выполненными рельефно-точечным шрифтом Брайля","Возможность предоставления инвалидам по слуху (слуху и зрению) услуг сурдопереводчика (тифлосурдопереводчика)","Наличие альтернативной версии официального сайта организации социальной сферы в сети «Интернет» для инвалидов по зрению","Помощь, оказываемая работниками организации, прошедшими необходимое обучение (инструктирование), по сопровождению инвалидов в помещении","Наличие возможности предоставления услуги в дистанционном режиме или на дому","Количество условий"]
[null,48,"Краснощековский район","МБУДО  «Краснощековский районный детско-юношеский центр»",0,1,0,0,0,{"$f":"SUM(E3:I3)","v":1},0,0,0,1,0,1,{"$f":"SUM(N3:P3)","v":2},{"$f":"SUM(K3:P3)","v":2},2,{"$f":"IF(AND(Q3=3,S3=2),100,IF(AND(Q3=2,S3=2),60,IF(AND(Q3=1,S3=2),30,R3*20)))","v":60}]

{"sheet":"3УслДостИнвОц","index":5,"n_rows":175,"n_cols":15,"rows_kept":175,"cut":false,"hidden":false,"merged":[[0,0,1,0],[0,13,1,13],[0,9,0,12],[0,3,0,5],[0,6,0,8],[0,1,1,1],[0,2,1,2]]}
["№ п/п","Муниципальное образование","Наименование образовательной организации","Показатель 3.1",null,null,"Показатель 3.2",null,null,"Показатель 3.3",null,null,null,"Итого по критерию:"]
[null,null,null,"Количество условий доступности образовательной организации для инвалидов","Значение показателя 3.1","Значение показателя 3.1 с учетом значимости","Количество условий доступности, позволяющих инвалидам получать услуги наравне с другими","Значение показателя 3.2","Значение показателя 3.2 с учетом значимости","Число получателей услуг-инвалидов, удовлетворенных доступностью услуг","Число получателей услуг-инвалидов, опрошенных по данному вопросу","Значение показателя 3.3","Значение показателя 3.3 с учетом значимости"]
[null,null,null,null,100,{"$f":"E3*0.3","v":30},null,100,{"$f":"H3*0.4","v":40},null,null,100,{"$f":"L3*0.3","v":30},{"$f":"F3+I3+M3","v":100}]
[48,"Краснощековский район","МБУДО  «Краснощековский районный детско-юношеский центр»",1,{"$f":"IF(D4<=4,D4*20,100)","v":20},{"$f":"E4*0.3","v":6},2,40,{"$f":"H4*0.4","v":16},7,7,{"$f":"J4/K4*100","v":100},{"$f":"L4*0.3","v":30},{"$f":"F4+I4+M4","v":52}]
[]
[]
[]
[]
[]
[]
[]
[]
[]
[]
[]
[]
[]
[]
[]
[]
[]
[]
[]
[]
[]
[]
[]
[]
[]
[]
[]
[]
[]
[]
[]
[]
[]
[]
[]
[]
[]
[]
[]
[]
[]
[]
[]
[]
[]
[]
[]
[]
[]
[]
[]
[]
[]
[]
[]
[]
[]
[]
[]
[]
[]
[]
[]
[]
[]
[]
[]
[]
[]
[]
[]
[]
[]
[]
[]
[]
[]
[]
[]
[]
[]
[]
[]
[]
[]
[]
[]
[]
[]
[]
[]
[]
[]
[]
[]
[]
[]
[]
[]
[]
[]
[]
[]
[]
[]
[]
[]
[]
[]
[]
[]
[]
[]
[]
[]
[]
[]
[]
[]
[]
[]
[]
[]
[]
[]
[]
[]
[]
[]
[]
[]
[]
[]
[]
[]
[]
[]
[]
[]
[null,null,null,null,null,null,null,null,null,null,null,null,null,null,1]
[null,null,null,null,null,null,null,null,null,null,null,null,null,null,2]
[null,null,null,null,null,null,null,null,null,null,null,null,null,null,3]
[null,null,null,null,null,null,null,null,null,null,null,null,null,null,4]
[null,null,null,null,null,null,null,null,null,null,null,null,null,null,5]
[null,null,null,null,null,null,null,null,null,null,null,null,null,null,6]
[null,null,null,null,null,null,null,null,null,null,null,null,null,null,7]
[null,null,null,null,null,null,null,null,null,null,null,null,null,null,8]
[null,null,null,null,null,null,null,null,null,null,null,null,null,null,9]
[null,null,null,null,null,null,null,null,null,null,null,null,null,null,10]
[null,null,null,null,null,null,null,null,null,null,null,null,null,null,11]
[null,null,null,null,null,null,null,null,null,null,null,null,null,null,12]
[null,null,null,null,null,null,null,null,null,null,null,null,null,null,13]
[null,null,null,null,null,null,null,null,null,null,null,null,null,null,14]
[null,null,null,null,null,null,null,null,null,null,null,null,null,null,15]
[null,null,null,null,null,null,null,null,null,null,null,null,null,null,16]
[null,null,null,null,null,null,null,null,null,null,null,null,null,null,17]
[null,null,null,null,null,null,null,null,null,null,null,null,null,null,18]
[null,null,null,null,null,null,null,null,null,null,null,null,null,null,19]
[null,null,null,null,null,null,null,null,null,null,null,null,null,null,20]
[null,null,null,null,null,null,null,null,null,null,null,null,null,null,21]
[null,null,null,null,null,null,null,null,null,null,null,null,null,null,22]
[null,null,null,null,null,null,null,null,null,null,null,null,null,null,23]
[null,null,null,null,null,null,null,null,null,null,null,null,null,null,24]
[null,null,null,null,null,null,null,null,null,null,null,null,null,null,25]
[null,null,null,null,null,null,null,null,null,null,null,null,null,null,26]
[null,null,null,null,null,null,null,null,null,null,null,null,null,null,27]
[null,null,null,null,null,null,null,null,null,null,null,null,null,null,28]
[null,null,null,null,null,null,null,null,null,null,null,null,null,null,29]
[null,null,null,null,null,null,null,null,null,null,null,null,null,null,30]
[null,null,null,null,null,null,null,null,null,null,null,null,null,null,31]
[null,null,null,null,null,null,null,null,null,null,null,null,null,null,32]

{"sheet":"4ДобрВежл","index":6,"n_rows":4,"n_cols":17,"rows_kept":4,"cut":false,"hidden":false,"merged":[[0,8,0,11],[0,12,0,15],[0,16,1,16],[0,3,2,3],[0,0,2,0],[0,1,2,1],[0,2,2,2],[0,4,0,7]]}
["№ п/п","№ п/п","Муниципальное образование","Наименование образовательной организации","Показатель 4.1 Доля получателей услуг, удовлетворенных доброжелательностью, вежливостью работников организации социальной сферы",null,null,null,"Показатель 4.2 Доля получателей услуг, удовлетворенных доброжелательностью, вежливостью работников организации социальной сферы, обеспечивающих непосредственное оказание услуги",null,null,null,"Показатель 4.3 Доля получателей услуг, удовлетворенных доброжелательностью, вежливостью работников организации социальной сферы при использовании дистанционных форм взаимодействия",null,null,null,"Итого по критерию:"]
[null,null,null,null,"Число получателей услуг, удовлетворенных доброжелательностью, вежливостью работников организации социальной сферы, обеспечивающих первичный контакт и информирование получателя услуги","Число опрошенных получателей услуг, ответивших на соответствующий вопрос анкеты","Значение показателя 4.1","Значение показателя 4.1 с учетом значимости","Число получателей услуг, удовлетворенных доброжелательностью, вежливостью работников организации социальной сферы, обеспечивающих непосредственное оказание услуги","Число опрошенных получателей услуг, ответивших на соответствующий вопрос анкеты","Значение показателя 4.2","Значение показателя 4.2 с учетом значимости","Число получателей услуг, удовлетворенных доброжелательностью, вежливостью работников организации социальной сферы при использовании дистанционных форм взаимодействия","Число опрошенных получателей услуг, ответивших на соответствующий вопрос анкеты","Значение показателя 4.3","Значение показателя 4.3 с учетом значимости"]
[null,null,null,null,null,null,100,{"$f":"G3*0.4","v":40},null,null,100,{"$f":"K3*0.4","v":40},null,null,100,{"$f":"O3*0.2","v":20},{"$f":"H3+L3+P3","v":100}]
[null,48,"Краснощековский район","МБУДО  «Краснощековский районный детско-юношеский центр»",117,117,{"$f":"E4/F4*100","v":100},{"$f":"G4*0.4","v":40},117,117,{"$f":"I4/J4*100","v":100},{"$f":"K4*0.4","v":40},117,117,{"$f":"M4/N4*100","v":100},{"$f":"O4*0.2","v":20},{"$f":"H4+L4+P4","v":100}]

{"sheet":"5УдовлУсл","index":7,"n_rows":4,"n_cols":17,"rows_kept":4,"cut":false,"hidden":false,"merged":[[0,12,0,15],[0,16,1,16],[0,0,2,0],[0,1,2,1],[0,2,2,2],[0,3,2,3],[0,4,0,7],[0,8,0,11]]}
[null,"№ п/п","Муниципальное образование","Наименование образовательной организации","Показатель 5.1 Доля получателей услуг, которые готовы рекомендовать организацию социальной сферы родственникам и знакомым",null,null,null,"Показатель 5.2 Доля получателей услуг, удовлетворенных организационными условиями предоставления услуг",null,null,null,"Показатель 5.3 Доля получателей услуг, удовлетворенных в целом условиями оказания услуг в организации",null,null,null,"Итого по критерию:"]
[null,null,null,null,"Число получателей услуг, которые готовы рекомендовать организацию родственникам и знакомым","Число опрошенных получателей услуг, ответивших на соответствующий вопрос анкеты","Значение показателя 5.1","Значение показателя 5.1 с учетом значимости","Число получателей услуг, удовлетворенных организационными условиями предоставления услуг","Число опрошенных получателей услуг, ответивших на соответствующий вопрос анкеты","Значение показателя 5.2","Значение показателя 5.2 с учетом значимости","Число получателей услуг, удовлетворенных в целом условиями оказания услуг в организации социальной сферы","Число опрошенных получателей услуг, ответивших на соответствующий вопрос анкеты","Значение показателя 5.3","Значение показателя 5.3 с учетом значимости"]
[null,null,null,null,null,null,100,{"$f":"G3*0.3","v":30},null,null,100,{"$f":"K3*0.2","v":20},null,null,100,{"$f":"O3*0.5","v":50},{"$f":"H3+L3+P3","v":100}]
[null,48,"Краснощековский район","МБУДО  «Краснощековский районный детско-юношеский центр»",117,117,{"$f":"E4/F4*100","v":100},{"$f":"G4*0.3","v":30},117,117,{"$f":"I4/J4*100","v":100},{"$f":"K4*0.2","v":20},116,117,99,{"$f":"O4*0.5","v":49.5},{"$f":"H4+L4+P4","v":99.5}]

{"sheet":"Интегр","index":8,"n_rows":9,"n_cols":23,"rows_kept":9,"cut":false,"hidden":false,"merged":[[0,11,0,14],[0,15,0,18],[0,19,0,22],[0,4,0,7],[0,0,2,0],[0,1,2,1],[0,2,2,2],[0,3,2,3],[0,8,0,10]]}
["Место в рейтинге","Муниципальное образование","Наименование образовательной организации","Интегральное значение показателя","1 - Показатели, характеризующие откртость и доступность информации об организации",null,null,null,"2 - Показатели, характеризующие комфортность условий предоставления услуг",null,null,"3 - Показатели, характеризующие доступность услуг для инвалидов",null,null,null,"4 - Показатели, характеризующие доброжелательность, вежливость работников организации",null,null,null,"5 - Показатели, характеризующие удовлетворенность условиями оказания услуг"]
[null,null,null,null,"1.1","1.2","1.3","К1","2.1","2.3","К2","3.1","3.2","3.3","К3","4.1","4.2","4.3","К4","5.1","5.2","5.3","К5"]
[null,null,null,null,30,30,40,100,50,50,100,30,40,30,100,40,40,20,100,30,20,50,100]
[40,"Краснощековский район","МБУДО  «Краснощековский районный детско-юношеский центр»",{"$f":"AVERAGE(H4,K4,O4,S4,W4)","v":89.523636363636371},{"$f":"'1ОиДинфоб'!G4","v":26.8},{"$f":"'1ОиДинфоб'!J4","v":30},{"$f":"'1ОиДинфоб'!P4","v":39.81818181818182},{"$f":"E4+F4+G4","v":96.618181818181824},{"$f":"'2КомУслОц'!F5","v":50},{"$f":"'2КомУслОц'!J5","v":49.5},{"$f":"I4+J4","v":99.5},{"$f":"'3УслДостИнвОц'!F4","v":6},{"$f":"'3УслДостИнвОц'!I4","v":16},{"$f":"'3УслДостИнвОц'!M4","v":30},{"$f":"L4+M4+N4","v":52},{"$f":"'4ДобрВежл'!H4","v":40},{"$f":"'4ДобрВежл'!L4","v":40},{"$f":"'4ДобрВежл'!P4","v":20},{"$f":"SUM(P4:R4)","v":100},{"$f":"'5УдовлУсл'!H4","v":30},{"$f":"'5УдовлУсл'!L4","v":20},{"$f":"'5УдовлУсл'!P4","v":49.5},{"$f":"SUM(T4:V4)","v":99.5}]
[]
[]
[]
["Место в рейтинге","Муниципальное образование","Наименование образовательной организации","Интегральное значение показателя","К1","К2","К3","К4","К5"]
[40,"Краснощековский район","МБУДО  «Краснощековский районный детско-юношеский центр»",89.523636363636371,96.618181818181824,99.5,52,100,99.5]